fUSD/lending_fUSD_20250530
["ID","MTS","AMOUNT","RATE_DAILY","PERIOD"]
[363169505,1748607051220,-1096.19,0.00022465,2]
[363169506,1748607051229,-420.0,0.00022465,2]
[363169507,1748607051239,-420.0,0.00022465,2]
[363169508,1748607051249,-505.65,0.00022465,2]
[363169509,1748607051257,-899.73,0.00022465,2]
[363169510,1748607051266,-420.0,0.00022465,2]
[363169511,1748607051275,-711.78,0.00022465,2]
[363169512,1748607051284,-420.0,0.00022465,2]
[363169513,1748607051293,-1058.99,0.00022465,2]
[363169514,1748607051302,-420.0,0.00022465,2]
[363169515,1748607051310,-420.0,0.00022465,2]
[363169516,1748607051319,-881.85,0.00022465,2]
[363169517,1748607051328,-420.0,0.00022465,2]
[363169518,1748607051337,-420.0,0.00022465,2]
[363169519,1748607051347,-420.0,0.00022465,2]
[363169520,1748607051356,-420.0,0.00022465,2]
[363169521,1748607051365,-501.47,0.00022465,2]
[363169522,1748607051373,-420.0,0.00022465,2]
[363169523,1748607051382,-897.81,0.00022465,2]
[363169524,1748607051392,-424.07,0.00022465,2]
[363169525,1748607051401,-420.0,0.00022465,2]
[363169526,1748607051410,-420.0,0.00022465,2]
[363169527,1748607051422,-475.28,0.00022465,2]
[363169528,1748607051430,-543.28,0.00022465,2]
[363169529,1748607051439,-840.36,0.00022465,2]
[363169530,1748607051449,-420.0,0.00022465,2]
[363169531,1748607051457,-900.0,0.00022465,2]
[363169532,1748607051468,-420.0,0.00022465,2]
[363169533,1748607051766,-420.0,0.00022465,2]
[363169534,1748607051776,-420.0,0.00022465,2]
[363169535,1748607051786,-420.0,0.00022465,2]
[363169536,1748607051798,-1281.34,0.00022465,2]
[363169537,1748607051809,-420.0,0.00022465,2]
[363169538,1748607051819,-420.0,0.00022465,2]
[363169539,1748607051830,-420.0,0.00022465,2]
[363169540,1748607051841,-420.0,0.00022465,2]
[363169541,1748607051852,-420.0,0.00022465,2]
[363169542,1748607051862,-1366.54,0.00022465,2]
[363169543,1748607051873,-617.92,0.00022465,2]
[363169544,1748607051884,-420.0,0.00022465,2]
[363169545,1748607051895,-420.0,0.00022465,2]
[363169546,1748607051906,-420.0,0.00022465,2]
[363169547,1748607051928,-420.0,0.00022465,2]
[363169548,1748607051940,-420.0,0.00022465,2]
[363169549,1748607051950,-496.86,0.00022465,2]
[363169550,1748607051961,-496.69314647,0.00022465,2]
[363169551,1748607051973,-597.58,0.00022465,2]
[363169552,1748607051984,-591.81,0.00022465,2]
[363169553,1748607051994,-420.0,0.00022465,2]
[363169554,1748607052005,-420.0,0.00022465,2]
[363169555,1748607052015,-420.0,0.00022465,2]
[363169556,1748607052026,-471.86,0.00022465,2]
[363169557,1748607052036,-661.02,0.00022465,2]
[363169558,1748607052047,-454.59,0.00022465,2]
[363169559,1748607052058,-420.0,0.00022465,2]
[363169560,1748607052069,-420.0,0.00022465,2]
[363169561,1748607052080,-420.0,0.00022465,2]
[363169562,1748607052091,-499.07,0.00022465,2]
[363169563,1748607052102,-670.85,0.00022465,2]
[363169564,1748607052112,-420.0,0.00022465,2]
[363169565,1748607052123,-719.24,0.00022465,2]
[363169566,1748607052134,-420.0,0.00022465,2]
[363169567,1748607052145,-420.0,0.00022465,2]
[363169568,1748607052155,-420.0,0.00022465,2]
[363169569,1748607052170,-461.58,0.00022465,2]
[363169570,1748607052181,-186.15343706,0.00022465,2]
[363169571,1748607052192,-420.0,0.00022465,2]
[363169572,1748607052203,-722.7,0.00022465,2]
[363169573,1748607052213,-420.0,0.00022465,2]
[363169574,1748607052224,-734.25,0.00022465,2]
[363169575,1748607052236,-420.0,0.00022465,2]
[363169576,1748607052247,-635.18,0.00022465,2]
[363169577,1748607052257,-420.0,0.00022465,2]
[363169578,1748607052267,-420.0,0.00022465,2]
[363169579,1748607052278,-420.0,0.00022465,2]
[363169580,1748607052288,-339.31255468,0.00022465,2]
[363169581,1748607052298,-554.74,0.00022465,2]
[363169582,1748607052310,-420.0,0.00022465,2]
[363169583,1748607052320,-611.52,0.00022465,2]
[363169584,1748607052330,-420.0,0.00022465,2]
[363169585,1748607052340,-420.0,0.00022465,2]
[363169586,1748607052350,-462.71,0.00022465,2]
[363169587,1748607052360,-420.0,0.00022465,2]
[363169588,1748607052370,-420.0,0.00022465,2]
[363169589,1748607052380,-420.0,0.00022465,2]
[363169590,1748607052390,-420.0,0.00022465,2]
[363169591,1748607052401,-1188.93,0.00022465,2]
[363169592,1748607052411,-420.0,0.00022465,2]
[363169593,1748607052424,-891.62,0.00022465,2]
[363169594,1748607052434,-605.19,0.00022465,2]
[363169595,1748607052445,-542.57,0.00022465,2]
[363169596,1748607052454,-806.97,0.00022465,2]
[363169597,1748607052464,-915.09,0.00022465,2]
[363169598,1748607052474,-420.0,0.00022465,2]
[363169599,1748607052484,-420.0,0.00022465,2]
[363169600,1748607052494,-420.0,0.00022465,2]
[363169601,1748607052504,-561.74,0.00022465,2]
[363169602,1748607052514,-420.0,0.00022465,2]
[363169603,1748607052524,-420.0,0.00022465,2]
[363169604,1748607052534,-830.32,0.00022465,2]
[363169605,1748607052545,-420.0,0.00022465,2]
[363169606,1748607052555,-420.0,0.00022465,2]
[363169607,1748607052565,-490.85,0.00022465,2]
[363169608,1748607052575,-420.0,0.00022465,2]
[363169609,1748607052585,-420.0,0.00022465,2]
[363169610,1748607052595,-420.0,0.00022465,2]
[363169611,1748607052606,-1423.64,0.00022465,2]
[363169612,1748607052616,-420.0,0.00022465,2]
[363169613,1748607052626,-555.69,0.00022465,2]
[363169614,1748607052636,-420.0,0.00022465,2]
[363169615,1748607052647,-1024.44,0.00022465,2]
[363169616,1748607052661,-561.39,0.00022465,2]
[363169617,1748607052676,-1024.4,0.00022465,2]
[363169618,1748607052686,-828.95,0.00022465,2]
[363169619,1748607052698,-666.43,0.00022465,2]
[363169620,1748607052708,-420.0,0.00022465,2]
[363169621,1748607052719,-843.71,0.00022465,2]
[363169622,1748607052729,-86926.41,0.00022465,2]
[363169623,1748607052739,-705.97,0.00022465,2]
[363169624,1748607052750,-420.0,0.00022465,2]
[363169625,1748607052760,-420.0,0.00022465,2]
[363169626,1748607052769,-1845.55,0.00022465,2]
[363169627,1748607052781,-420.0,0.00022465,2]
[363169628,1748607052792,-444.53,0.00022465,2]
[363169629,1748607052802,-476.13,0.00022465,2]
[363169630,1748607052812,-420.0,0.00022465,2]
[363169631,1748607052822,-2157.65,0.00022465,2]
[363169632,1748607052831,-822.98,0.00022465,2]
[363169633,1748607052841,-1603.7,0.00022465,2]
[363169634,1748607052851,-447.93,0.00022465,2]
[363169635,1748607052861,-420.0,0.00022465,2]
[363169636,1748607052871,-980.59,0.00022465,2]
[363169637,1748607052881,-420.0,0.00022465,2]
[363169638,1748607052890,-1723.19,0.00022465,2]
[363169639,1748607052900,-983.82,0.00022465,2]
[363169640,1748607052909,-511.09,0.00022465,2]
[363169641,1748607052921,-420.0,0.00022465,2]
[363169642,1748607052930,-420.0,0.00022465,2]
[363169643,1748607052940,-1122.49,0.00022465,2]
[363169644,1748607052950,-420.0,0.00022465,2]
[363169645,1748607052959,-2217.7,0.00022465,2]
[363169646,1748607052969,-420.0,0.00022465,2]
[363169647,1748607052979,-1063.81,0.00022465,2]
[363169648,1748607052988,-6717.82,0.00022465,2]
[363169649,1748607052998,-691.37,0.00022465,2]
[363169650,1748607053007,-1317.38,0.00022465,2]
[363169651,1748607053018,-1372.57,0.00022465,2]
[363169652,1748607053027,-420.0,0.00022465,2]
[363169653,1748607053038,-7535.87,0.00022465,2]
[363169654,1748607053047,-2685.86,0.00022465,2]
[363169655,1748607053058,-2380.77,0.00022465,2]
[363169656,1748607053068,-420.0,0.00022465,2]
[363169657,1748607053078,-2507.78,0.00022465,2]
[363169658,1748607053088,-649.68,0.00022465,2]
[363169659,1748607053098,-5187.95,0.00022465,2]
[363169660,1748607053108,-2012.28,0.00022465,2]
[363169661,1748607053118,-689.56,0.00022465,2]
[363169662,1748607053127,-927.66,0.00022465,2]
[363169663,1748607053136,-658.91,0.00022465,2]
[363169664,1748607053146,-3885.76,0.00022465,2]
[363169665,1748607053156,-603.91,0.00022465,2]
[363169666,1748607053168,-6681.81,0.00022465,2]
[363169667,1748607053178,-911.24,0.00022465,2]
[363169668,1748607053188,-932.04,0.00022465,2]
[363169669,1748607053198,-492.89,0.00022465,2]
[363169670,1748607053207,-646.35,0.00022465,2]
[363169671,1748607053217,-1220.31,0.00022465,2]
[363169672,1748607053227,-939.98,0.00022465,2]
[363169673,1748607053237,-420.0,0.00022465,2]
[363169674,1748607053247,-420.0,0.00022465,2]
[363169675,1748607053256,-1108.35,0.00022465,2]
[363169676,1748607053266,-3430.82,0.00022465,2]
[363169677,1748607053276,-420.0,0.00022465,2]
[363169678,1748607053285,-9207.29,0.00022465,2]
[363169679,1748607053295,-420.0,0.00022465,2]
[363169680,1748607053304,-2205.41,0.00022465,2]
[363169681,1748607053314,-575.48,0.00022465,2]
[363169682,1748607053323,-887.03,0.00022465,2]
[363169683,1748607053333,-420.0,0.00022465,2]
[363169684,1748607053343,-420.0,0.00022465,2]
[363169685,1748607053354,-7187.75,0.00022465,2]
[363169686,1748607053363,-420.0,0.00022465,2]
[363169687,1748607053373,-737.14,0.00022465,2]
[363169688,1748607053383,-586.97,0.00022465,2]
[363169689,1748607053392,-420.0,0.00022465,2]
[363169690,1748607053402,-720.56,0.00022465,2]
[363169691,1748607053411,-481.84,0.00022465,2]
[363169692,1748607053423,-420.0,0.00022465,2]
[363169693,1748607053432,-1809.99,0.00022465,2]
[363169694,1748607053441,-480.85,0.00022465,2]
[363169695,1748607053450,-2301.8,0.00022465,2]
[363169696,1748607053460,-1126.66,0.00022465,2]
[363169697,1748607053469,-420.0,0.00022465,2]
[363169698,1748607053478,-1133.39,0.00022465,2]
[363169699,1748607053488,-1016.52,0.00022465,2]
[363169700,1748607053498,-420.0,0.00022465,2]
[363169701,1748607053508,-7056.8,0.00022465,2]
[363169702,1748607053517,-2797.49,0.00022465,2]
[363169703,1748607053527,-641.25,0.00022465,2]
[363169704,1748607053536,-568.14,0.00022465,2]
[363169705,1748607053545,-761.33,0.00022465,2]
[363169706,1748607053554,-420.0,0.00022465,2]
[363169707,1748607053564,-482.24,0.00022465,2]
[363169708,1748607053573,-420.0,0.00022465,2]
[363169709,1748607053582,-420.0,0.00022465,2]
[363169710,1748607053592,-458.08,0.00022465,2]
[363169711,1748607053602,-1729.68,0.00022465,2]
[363169712,1748607053613,-804.22,0.00022465,2]
[363169713,1748607053624,-420.0,0.00022465,2]
[363169714,1748607053633,-981.01,0.00022465,2]
[363169715,1748607053643,-665.18,0.00022465,2]
[363169716,1748607053657,-1614.28,0.00022465,2]
[363169717,1748607053668,-983.07,0.00022465,2]
[363169718,1748607053678,-813.82,0.00022465,2]
[363169719,1748607053688,-873.87,0.00022465,2]
[363169720,1748607053699,-4813.38,0.00022465,2]
[363169721,1748607053708,-418.00165374,0.00022465,2]
[363169722,1748607053718,-1632.65,0.00022465,2]
[363169723,1748607053728,-472.8,0.00022465,2]
[363169724,1748607053738,-420.0,0.00022465,2]
[363169725,1748607053749,-457.6,0.00022465,2]
[363169726,1748607053760,-5108.33,0.00022465,2]
[363169727,1748607053768,-2974.9,0.00022465,2]
[363169728,1748607053777,-613.72,0.00022465,2]
[363169729,1748607053785,-420.0,0.00022465,2]
[363169730,1748607053795,-1922.14,0.00022465,2]
[363169731,1748607053804,-2797.81,0.00022465,2]
[363169732,1748607053814,-778.71,0.00022465,2]
[363169733,1748607053824,-892.25,0.00022465,2]
[363169734,1748607053833,-705.71,0.00022465,2]
[363169735,1748607053844,-1674.65,0.00022465,2]
[363169736,1748607053853,-1389.57,0.00022465,2]
[363169737,1748607053863,-684.93,0.00022465,2]
[363169738,1748607053873,-324.56292373,0.00022465,2]
[363169739,1748607053883,-1255.87,0.00022465,2]
[363169740,1748607053893,-2470.47,0.00022465,2]
[363169741,1748607053902,-420.0,0.00022465,2]
[363169742,1748607053911,-420.0,0.00022465,2]
[363169743,1748607053922,-1338.59,0.00022465,2]
[363169744,1748607053932,-1182.57,0.00022465,2]
[363169745,1748607053941,-556.75,0.00022465,2]
[363169746,1748607053951,-420.0,0.00022465,2]
[363169747,1748607053960,-2489.28,0.00022465,2]
[363169748,1748607053970,-420.0,0.00022465,2]
[363169749,1748607053980,-490.55,0.00022465,2]
[363169750,1748607053990,-2169.61,0.00022465,2]
[363169751,1748607053999,-718.83,0.00022465,2]
[363169752,1748607054008,-420.0,0.00022465,2]
[363169753,1748607054019,-420.0,0.00022465,2]
[363169754,1748607054029,-921.22,0.00022465,2]
[363169755,1748607054039,-2061.41,0.00022465,2]
[363169756,1748607054049,-420.0,0.00022465,2]
[363169757,1748607054060,-420.0,0.00022465,2]
[363169758,1748607054070,-3184.52,0.00022465,2]
[363169759,1748607054079,-789.16,0.00022465,2]
[363169760,1748607054089,-423.48,0.00022465,2]
[363169761,1748607054098,-420.0,0.00022465,2]
[363169762,1748607054107,-2835.89,0.00022465,2]
[363169763,1748607054116,-420.0,0.00022465,2]
[363169764,1748607054126,-567.0,0.00022465,2]
[363169765,1748607054135,-1177.33,0.00022465,2]
[363169766,1748607054145,-2667.69,0.00022465,2]
[363169767,1748607054154,-420.0,0.00022465,2]
[363169768,1748607054165,-2466.9,0.00022465,2]
[363169769,1748607054250,-1946.37,0.00022465,2]
[363169770,1748607054260,-648.5,0.00022465,2]
[363169771,1748607054269,-1659.75,0.00022465,2]
[363169772,1748607054279,-678.29,0.00022465,2]
[363169773,1748607054288,-524.41,0.00022465,2]
[363169774,1748607054298,-733.52,0.00022465,2]
[363169775,1748607054307,-1782.45,0.00022465,2]
[363169776,1748607054316,-1513.35,0.00022465,2]
[363169777,1748607054325,-747.44,0.00022465,2]
[363169778,1748607054334,-445.41,0.00022465,2]
[363169779,1748607054343,-420.0,0.00022465,2]
[363169780,1748607054353,-693.81,0.00022465,2]
[363169781,1748607054362,-925.56,0.00022465,2]
[363169782,1748607054372,-1866.18,0.00022465,2]
[363169783,1748607054381,-859.59,0.00022465,2]
[363169784,1748607054390,-524.76,0.00022465,2]
[363169785,1748607054400,-420.0,0.00022465,2]
[363169786,1748607054409,-420.0,0.00022465,2]
[363169787,1748607054419,-455.3,0.00022465,2]
[363169788,1748607054428,-7524.05,0.00022465,2]
[363169789,1748607054438,-420.0,0.00022465,2]
[363169790,1748607054447,-174.64916027,0.00022465,2]
[363169791,1748607054901,-273.52083973,0.00022465,2]
[363169792,1748607054912,-478.5,0.00022465,2]
[363169793,1748607054924,-1100.99,0.00022465,2]
[363169794,1748607054934,-3104.83562734,0.00022465,2]
[363169795,1748607055368,-420.0,0.00021917,2]
[363169796,1748607055378,-2950.43437266,0.00022465,2]
[363169797,1748607055387,-420.0,0.00022465,2]
[363169798,1748607055396,-937.48,0.00022465,2]
[363169799,1748607055406,-564.55,0.00022465,2]
[363169800,1748607055418,-1109.15,0.00022465,2]
[363169801,1748607055427,-3354.03,0.00022465,2]
[363169802,1748607055436,-7876.53,0.00022465,2]
[363169803,1748607055446,-420.0,0.00022465,2]
[363169804,1748607055455,-428.1,0.00022465,2]
[363169805,1748607055464,-640.66,0.00022465,2]
[363169806,1748607055474,-222.56191536,0.00022465,2]
[363169807,1748607055483,-732.75,0.00022465,2]
[363169808,1748607055492,-628.09,0.00022465,2]
[363169809,1748607055502,-802.35,0.00022465,2]
[363169810,1748607055511,-420.0,0.00022465,2]
[363169811,1748607055520,-4476.09,0.00022465,2]
[363169812,1748607055529,-420.0,0.00022465,2]
[363169813,1748607055539,-1010.4,0.00022465,2]
[363169814,1748607055548,-954.45,0.00022465,2]
[363169815,1748607055558,-830.92,0.00022465,2]
[363169816,1748607055568,-834.55,0.00022465,2]
[363169817,1748607055578,-1074.88,0.00022465,2]
[363169818,1748607055587,-533.45,0.00022465,2]
[363169819,1748607055596,-715.52,0.00022465,2]
[363169820,1748607055606,-659.25,0.00022465,2]
[363169821,1748607055615,-881.61,0.00022465,2]
[363169822,1748607055625,-420.0,0.00022465,2]
[363169823,1748607055634,-1646.34,0.00022465,2]
[363169824,1748607055644,-420.0,0.00022465,2]
[363169825,1748607055655,-5188.37,0.00022465,2]
[363169826,1748607055666,-411.80000001,0.00022465,2]
[363169827,1748607055681,-724.95,0.00022465,2]
[363169828,1748607055691,-420.0,0.00022465,2]
[363169829,1748607055702,-4441.46,0.00022465,2]
[363169830,1748607055711,-1045.74,0.00022465,2]
[363169831,1748607055721,-420.0,0.00022465,2]
[363169832,1748607055730,-3401.09,0.00022465,2]
[363169833,1748607055740,-420.0,0.00022465,2]
[363169834,1748607055750,-1787.46,0.00022465,2]
[363169835,1748607055760,-821.68,0.00022465,2]
[363169836,1748607055769,-1393.87,0.00022465,2]
[363169837,1748607055779,-420.0,0.00022465,2]
[363169838,1748607055789,-631.21,0.00022465,2]
[363169839,1748607055799,-1135.27,0.00022465,2]
[363169840,1748607055809,-948.4,0.00022465,2]
[363169841,1748607055818,-620.79,0.00022465,2]
[363169842,1748607055828,-420.0,0.00022465,2]
[363169843,1748607055839,-874.48,0.00022465,2]
[363169844,1748607055849,-528.89,0.00022465,2]
[363169845,1748607055859,-420.0,0.00022465,2]
[363169846,1748607055869,-420.0,0.00022465,2]
[363169847,1748607055879,-500.0,0.00022473,2]
[363169848,1748607055889,-500.0,0.00022473,2]
[363169849,1748607055899,-500.0,0.00022473,2]
[363169850,1748607055909,-500.0,0.00022473,2]
[363169851,1748607055923,-650.401,0.00022473,2]
[363169852,1748607055932,-1099.19390683,0.00022521,7]
[363169853,1748607055941,-431.73927023,0.00022548,2]
[363169854,1748607055952,-1223.3395,0.00022639,2]
[363169855,1748607055961,-609.8851,0.00022639,2]
[363169856,1748607055971,-514.15,0.00022663,2]
[363169857,1748607055982,-431.73927023,0.0002273,2]
[363169858,1748607055992,-22510.63,0.00022738,2]
[363169859,1748607056003,-1383.96,0.00022738,2]
[363169860,1748607056014,-420.0,0.00022738,2]
[363169861,1748607056025,-1043.78,0.00022738,2]
[363169862,1748607056036,-5846.34,0.00022738,2]
[363169863,1748607056047,-881.68,0.00022738,2]
[363169864,1748607056058,-1371.68,0.00022738,2]
[363169865,1748607056070,-529.27,0.00022738,2]
[363169866,1748607056081,-14492.09,0.00022738,2]
[363169867,1748607056092,-593.61,0.00022738,2]
[363169868,1748607056103,-2219.46,0.00022738,2]
[363169869,1748607056115,-1480.09,0.00022738,2]
[363169870,1748607056127,-1225.13,0.00022738,2]
[363169871,1748607056138,-530.83,0.00022738,2]
[363169872,1748607056150,-480.91,0.00022739,2]
[363169873,1748607056161,-420.0,0.00022739,2]
[363169874,1748607056183,-420.0,0.00022739,2]
[363169875,1748607056194,-527.46,0.00022739,2]
[363169876,1748607056205,-420.0,0.00022739,2]
[363169877,1748607056216,-420.0,0.00022739,2]
[363169878,1748607056226,-420.0,0.00022739,2]
[363169879,1748607056237,-420.0,0.00022739,2]
[363169880,1748607056246,-420.0,0.00022739,2]
[363169881,1748607056256,-424.96,0.00022739,2]
[363169882,1748607056266,-420.0,0.00022739,2]
[363169883,1748607056275,-420.0,0.00022739,2]
[363169884,1748607056285,-420.0,0.00022739,2]
[363169885,1748607056295,-718.13,0.00022739,2]
[363169886,1748607056304,-420.0,0.00022739,2]
[363169887,1748607056314,-420.0,0.00022739,2]
[363169888,1748607056324,-420.0,0.00022739,2]
[363169889,1748607056334,-420.0,0.00022739,2]
[363169890,1748607056344,-420.0,0.00022739,2]
[363169891,1748607056353,-866.18,0.00022739,2]
[363169892,1748607056363,-420.0,0.00022739,2]
[363169893,1748607056373,-420.0,0.00022739,2]
[363169894,1748607056383,-420.0,0.00022739,2]
[363169895,1748607056393,-542.03,0.00022739,2]
[363169896,1748607056403,-420.0,0.00022739,2]
[363169897,1748607056412,-420.0,0.00022739,2]
[363169898,1748607056426,-420.0,0.00022739,2]
[363169899,1748607056436,-541.7,0.00022739,2]
[363169900,1748607056446,-310.82825119,0.00022739,2]
[363169901,1748607056456,-420.0,0.00022739,2]
[363169902,1748607056465,-420.0,0.00022739,2]
[363169903,1748607056475,-420.0,0.00022739,2]
[363169904,1748607056484,-741.67,0.00022739,2]
[363169905,1748607056494,-420.0,0.00022739,2]
[363169906,1748607056504,-420.0,0.00022739,2]
[363169907,1748607056514,-420.0,0.00022739,2]
[363169908,1748607056524,-1824.87,0.00022739,2]
[363169909,1748607056534,-420.0,0.00022739,2]
[363169910,1748607056544,-420.0,0.00022739,2]
[363169911,1748607056554,-420.0,0.00022739,2]
[363169912,1748607056563,-607.61,0.00022739,2]
[363169913,1748607056573,-420.0,0.00022739,2]
[363169914,1748607056582,-420.0,0.00022739,2]
[363169915,1748607056592,-420.0,0.00022739,2]
[363169916,1748607056601,-420.0,0.00022739,2]
[363169917,1748607056611,-420.0,0.00022739,2]
[363169918,1748607056621,-420.0,0.00022739,2]
[363169919,1748607056631,-642.81,0.00022739,2]
[363169920,1748607056641,-420.0,0.00022739,2]
[363169921,1748607056651,-688.21,0.00022739,2]
[363169922,1748607056661,-468.61,0.00022739,2]
[363169923,1748607056677,-420.0,0.00022739,2]
[363169924,1748607056687,-420.0,0.00022739,2]
[363169925,1748607056698,-420.0,0.00022739,2]
[363169926,1748607056708,-681.76,0.00022739,2]
[363169927,1748607056717,-467.99,0.00022739,2]
[363169928,1748607056727,-420.0,0.00022739,2]
[363169929,1748607056737,-420.0,0.00022739,2]
[363169930,1748607056747,-570.81,0.00022739,2]
[363169931,1748607056757,-420.0,0.00022739,2]
[363169932,1748607056766,-848.07,0.00022739,2]
[363169933,1748607056776,-420.0,0.00022739,2]
[363169934,1748607056785,-492.25,0.00022739,2]
[363169935,1748607056795,-420.0,0.00022739,2]
[363169936,1748607056804,-554.15,0.00022739,2]
[363169937,1748607056813,-754.18,0.00022739,2]
[363169938,1748607056823,-420.0,0.00022739,2]
[363169939,1748607056834,-271.21042018,0.00022739,2]
[363169940,1748607056844,-420.0,0.00022739,2]
[363169941,1748607056853,-420.0,0.00022739,2]
[363169942,1748607056863,-420.0,0.00022739,2]
[363169943,1748607056873,-420.0,0.00022739,2]
[363169944,1748607056882,-420.0,0.00022739,2]
[363169945,1748607056892,-488.67,0.00022739,2]
[363169946,1748607056900,-550.32,0.00022739,2]
[363169947,1748607056909,-420.0,0.00022739,2]
[363169948,1748607056921,-475.66,0.00022739,2]
[363169949,1748607056929,-1204.07,0.00022739,2]
[363169950,1748607056938,-420.0,0.00022739,2]
[363169951,1748607056947,-420.0,0.00022739,2]
[363169952,1748607056955,-438.16769462,0.00022739,2]
[363169953,1748607056964,-983.71,0.00022739,2]
[363169954,1748607056972,-665.55,0.00022739,2]
[363169955,1748607056980,-420.0,0.00022739,2]
[363169956,1748607056989,-420.0,0.00022739,2]
[363169957,1748607056997,-420.0,0.00022739,2]
[363169958,1748607057006,-420.0,0.00022739,2]
[363169959,1748607057016,-430.7,0.00022739,2]
[363169960,1748607057025,-420.0,0.00022739,2]
[363169961,1748607057034,-420.0,0.00022739,2]
[363169962,1748607057044,-420.0,0.00022739,2]
[363169963,1748607057053,-420.0,0.00022739,2]
[363169964,1748607057062,-420.0,0.00022739,2]
[363169965,1748607057071,-420.0,0.00022739,2]
[363169966,1748607057081,-437.84,0.00022739,2]
[363169967,1748607057090,-594.66,0.00022739,2]
[363169968,1748607057100,-250.0,0.00022739,2]
[363169969,1748607057109,-878.74,0.00022739,2]
[363169970,1748607057118,-815.54,0.00022739,2]
[363169971,1748607057128,-420.0,0.00022739,2]
[363169972,1748607057138,-420.0,0.00022739,2]
[363169973,1748607057148,-420.0,0.00022739,2]
[363169974,1748607057158,-420.0,0.00022739,2]
[363169975,1748607057171,-420.0,0.00022739,2]
[363169976,1748607057181,-420.0,0.00022739,2]
[363169977,1748607057191,-420.0,0.00022739,2]
[363169978,1748607057200,-462.0,0.00022739,2]
[363169979,1748607057211,-420.0,0.00022739,2]
[363169980,1748607057220,-904.21,0.00022739,2]
[363169981,1748607057230,-420.0,0.00022739,2]
[363169982,1748607057240,-420.0,0.00022739,2]
[363169983,1748607057251,-420.0,0.00022739,2]
[363169984,1748607057260,-420.0,0.00022739,2]
[363169985,1748607057271,-476.26,0.00022739,2]
[363169986,1748607057280,-427.79,0.00022739,2]
[363169987,1748607057290,-460.54,0.00022739,2]
[363169988,1748607057300,-420.0,0.00022739,2]
[363169989,1748607057310,-420.0,0.00022739,2]
[363169990,1748607057320,-420.0,0.00022739,2]
[363169991,1748607057329,-420.0,0.00022739,2]
[363169992,1748607057339,-420.0,0.00022739,2]
[363169993,1748607057349,-178.11312863,0.00022739,2]
[363169994,1748607057359,-420.0,0.00022739,2]
[363169995,1748607057369,-844.76,0.00022739,2]
[363169996,1748607057379,-1173.07,0.00022739,2]
[363169997,1748607057390,-420.0,0.00022739,2]
[363169998,1748607057400,-420.0,0.00022739,2]
[363169999,1748607057410,-795.92,0.00022739,2]
[363170000,1748607057423,-792.64,0.00022739,2]
[363170001,1748607057433,-420.0,0.00022739,2]
[363170002,1748607057443,-600.66,0.00022739,2]
[363170003,1748607057452,-420.0,0.00022739,2]
[363170004,1748607057462,-783.75,0.00022739,2]